lending/lending_fUSD_20250408
["ID","MTS","AMOUNT","RATE_DAILY","PERIOD"]
[357539822,1744131175786,-554.84,0.0003315,2]
[357539823,1744131175795,-1066.53,0.0003315,2]
[357539824,1744131175805,-784.39,0.0003315,2]
[357539825,1744131175815,-508.06,0.0003315,2]
[357539826,1744131175824,-513.92,0.0003315,2]
[357539827,1744131175833,-1465.9,0.0003315,2]
[357539828,1744131175843,-568.34,0.0003315,2]
[357539829,1744131175853,-583.31,0.0003315,2]
[357539830,1744131175863,-627.5,0.0003315,2]
[357539831,1744131175873,-500.0,0.0003315,2]
[357539832,1744131175883,-500.0,0.0003315,2]
[357539833,1744131175892,-570.96,0.0003315,2]
[357539834,1744131175902,-347.29268616,0.0003315,2]
[357539835,1744131175911,-702.55,0.0003315,2]
[357539836,1744131175920,-627.68,0.0003315,2]
[357539837,1744131175930,-600.21,0.0003315,2]
[357539838,1744131175939,-717.93,0.0003315,2]
[357539839,1744131175948,-525.64,0.0003315,2]
[357539840,1744131175958,-683.46,0.0003315,2]
[357539841,1744131175967,-500.0,0.0003315,2]
[357539842,1744131175977,-537.7,0.0003315,2]
[357539843,1744131175987,-1354.7,0.0003315,2]
[357539844,1744131175996,-748.01,0.0003315,2]
[357539845,1744131176006,-1010.61,0.0003315,2]
[357539846,1744131176015,-644.40285098,0.0003315,2]
[357539847,1744131176025,-564.61,0.0003315,2]
[357539848,1744131176034,-333.98074073,0.0003315,2]
[357539849,1744131176043,-790.51,0.0003315,2]
[357539850,1744131176052,-1476.66,0.0003315,2]
[357539851,1744131176061,-500.0,0.0003315,2]
[357539852,1744131176071,-655.26,0.0003315,2]
[357539853,1744131176080,-737.15,0.0003315,2]
[357539854,1744131176089,-500.0,0.0003315,2]
[357539855,1744131176099,-539.63,0.0003315,2]
[357539856,1744131176114,-500.0,0.0003315,2]
[357539857,1744131176123,-677.2,0.0003315,2]
[357539858,1744131176132,-959.99,0.0003315,2]
[357539859,1744131176142,-704.21,0.0003315,2]
[357539860,1744131176152,-703.81,0.0003315,2]
[357539861,1744131176161,-641.96,0.0003315,2]
[357539862,1744131176171,-505.48,0.0003315,2]
[357539863,1744131176181,-932.66,0.0003315,2]
[357539864,1744131176190,-812.56,0.0003315,2]
[357539865,1744131176200,-1465.75,0.0003315,2]
[357539866,1744131176210,-580.15,0.0003315,2]
[357539867,1744131176220,-889.0,0.0003315,2]
[357539868,1744131176333,-888.6,0.0003315,2]
[357539869,1744131176343,-545.23,0.0003315,2]
[357539870,1744131176352,-2260.02,0.0003315,2]
[357539871,1744131176361,-794.37,0.0003315,2]
[357539872,1744131176371,-613.35,0.0003315,2]
[357539873,1744131176380,-567.81,0.0003315,2]
[357539874,1744131176389,-500.0,0.0003315,2]
[357539875,1744131176398,-808.98,0.0003315,2]
[357539876,1744131176407,-845.46,0.0003315,2]
[357539877,1744131176417,-593.3,0.0003315,2]
[357539878,1744131176426,-581.16,0.0003315,2]
[357539879,1744131176436,-444.31665142,0.0003315,2]
[357539880,1744131176445,-878.06,0.0003315,2]
[357539881,1744131176455,-1056.72,0.0003315,2]
[357539882,1744131176467,-1037.85,0.0003315,2]
[357539883,1744131176477,-172.2,0.0003315,2]
[357539884,1744131176486,-624.4,0.0003315,2]
[357539885,1744131176496,-547.99962896,0.0003315,2]
[357539886,1744131176507,-547.36,0.0003315,2]
[357539887,1744131176517,-503.72534161,0.0003315,2]
[357539888,1744131176526,-1221.73,0.0003315,2]
[357539889,1744131176535,-541.77,0.0003315,2]
[357539890,1744131176544,-1049.21,0.0003315,2]
[357539891,1744131176554,-833.03,0.0003315,2]
[357539892,1744131176563,-947.72,0.0003315,2]
[357539893,1744131176572,-2154.22,0.0003315,2]
[357539894,1744131176581,-915.59,0.0003315,2]
[357539895,1744131176590,-715.09,0.0003315,2]
[357539896,1744131176598,-806.29,0.0003315,2]
[357539897,1744131176607,-681.07,0.0003315,2]
[357539898,1744131176619,-596.17,0.0003315,2]
[357539899,1744131176628,-623.11,0.0003315,2]
[357539900,1744131176637,-643.21,0.0003315,2]
[357539901,1744131176646,-895.87,0.0003315,2]
[357539902,1744131176655,-591.63,0.0003315,2]
[357539903,1744131176664,-840.88,0.0003315,2]
[357539904,1744131176673,-915.65,0.0003315,2]
[357539905,1744131176682,-2601.54,0.0003315,2]
[357539906,1744131176691,-6189.26,0.0003315,2]
[357539907,1744131176700,-1470.66,0.0003315,2]
[357539908,1744131176709,-500.0,0.0003315,2]
[357539909,1744131176718,-1161.33,0.0003315,2]
[357539910,1744131176727,-557.06,0.0003315,2]
[357539911,1744131176736,-748.03,0.0003315,2]
[357539912,1744131176746,-1784.68,0.0003315,2]
[357539913,1744131176755,-736.96,0.0003315,2]
[357539914,1744131176763,-528.16,0.0003315,2]
[357539915,1744131176772,-802.54,0.0003315,2]
[357539916,1744131176781,-1759.78,0.0003315,2]
[357539917,1744131176790,-880.64,0.0003315,2]
[357539918,1744131176799,-878.89,0.0003315,2]
[357539919,1744131176808,-939.58,0.0003315,2]
[357539920,1744131176817,-735.03,0.0003315,2]
[357539921,1744131176827,-524.35,0.0003315,2]
[357539922,1744131176836,-1127.76,0.0003315,2]
[357539923,1744131176846,-1017.57,0.0003315,2]
[357539924,1744131176855,-6178.64,0.0003315,2]
[357539925,1744131176865,-396.28,0.0003315,2]
[357539926,1744131176874,-513.55,0.0003315,2]
[357539927,1744131176883,-950.17,0.0003315,2]
[357539928,1744131176892,-1089.76,0.0003315,2]
[357539929,1744131176901,-549.65,0.0003315,2]
[357539930,1744131176910,-578.6,0.0003315,2]
[357539931,1744131176920,-841.6,0.0003315,2]
[357539932,1744131176929,-1940.65,0.0003315,2]
[357539933,1744131176939,-3839.98,0.0003315,2]
[357539934,1744131176949,-671.05,0.0003315,2]
[357539935,1744131176958,-558.9,0.0003315,2]
[357539936,1744131176968,-1739.52,0.0003315,2]
[357539937,1744131176977,-853.97,0.0003315,2]
[357539938,1744131176987,-727.58,0.0003315,2]
[357539939,1744131176996,-734.69,0.0003315,2]
[357539940,1744131177005,-1008.41,0.0003315,2]
[357539941,1744131177015,-990.1,0.0003315,2]
[357539942,1744131177024,-737.46,0.0003315,2]
[357539943,1744131177033,-872.33,0.0003315,2]
[357539944,1744131177042,-880.15,0.0003315,2]
[357539945,1744131177051,-825.98,0.0003315,2]
[357539946,1744131177060,-506.13,0.0003315,2]
[357539947,1744131177069,-2261.1,0.0003315,2]
[357539948,1744131177078,-2351.91,0.0003315,2]
[357539949,1744131177087,-1830.5,0.0003315,2]
[357539950,1744131177097,-727.88,0.0003315,2]
[357539951,1744131177107,-1859.52,0.0003315,2]
[357539952,1744131177121,-665.51,0.0003315,2]
[357539953,1744131177131,-986.07,0.0003315,2]
[357539954,1744131177140,-593.3,0.0003315,2]
[357539955,1744131177150,-1483.68,0.0003315,2]
[357539956,1744131177159,-4169.04,0.0003315,2]
[357539957,1744131177169,-1258.57,0.0003315,2]
[357539958,1744131177178,-524.58,0.0003315,2]
[357539959,1744131177188,-646.63,0.0003315,2]
[357539960,1744131177198,-808.53,0.0003315,2]
[357539961,1744131177207,-1146.51,0.0003315,2]
[357539962,1744131177216,-535.91,0.0003315,2]
[357539963,1744131177225,-24279.06,0.0003315,2]
[357539964,1744131177234,-632.96,0.0003315,2]
[357539965,1744131177243,-1842.22,0.0003315,2]
[357539966,1744131177252,-575.39,0.0003315,2]
[357539967,1744131177261,-892.34,0.0003315,2]
[357539968,1744131177270,-735.43,0.0003315,2]
[357539969,1744131177280,-921.97,0.0003315,2]
[357539970,1744131177289,-1216.92,0.0003315,2]
[357539971,1744131177298,-589.43,0.0003315,2]
[357539972,1744131177307,-618.97359978,0.0003315,2]
[357539973,1744131177317,-500.0,0.0003315,2]
[357539974,1744131177326,-646.32,0.0003315,2]
[357539975,1744131177335,-1299.3,0.0003315,2]
[357539976,1744131177344,-616.22,0.0003315,2]
[357539977,1744131177354,-4391.56,0.0003315,2]
[357539978,1744131177365,-735.03,0.0003315,2]
[357539979,1744131177375,-573.44,0.0003315,2]
[357539980,1744131177384,-830.9,0.0003315,2]
[357539981,1744131177393,-542.44,0.0003315,2]
[357539982,1744131177402,-1398.27,0.0003315,2]
[357539983,1744131177411,-763.62,0.0003315,2]
[357539984,1744131177420,-1043.21,0.0003315,2]
[357539985,1744131177429,-259.34683856,0.0003315,2]
[357539986,1744131177438,-500.0,0.0003315,2]
[357539987,1744131177447,-745.57,0.0003315,2]
[357539988,1744131177455,-812.8,0.0003315,2]
[357539989,1744131177465,-836.32,0.0003315,2]
[357539990,1744131177475,-813.0,0.0003315,2]
[357539991,1744131177484,-500.0,0.0003315,2]
[357539992,1744131177493,-684.15,0.0003315,2]
[357539993,1744131177503,-1564.46,0.0003315,2]
[357539994,1744131177512,-984.76,0.0003315,2]
[357539995,1744131177521,-615.97,0.0003315,2]
[357539996,1744131177531,-630.49,0.0003315,2]
[357539997,1744131177540,-780.29,0.0003315,2]
[357539998,1744131177549,-794.86,0.0003315,2]
[357539999,1744131177559,-918.03,0.0003315,2]
[357540000,1744131177568,-6319.24,0.0003315,2]
[357540001,1744131177577,-929.59,0.0003315,2]
[357540002,1744131177586,-1679.19,0.0003315,2]
[357540003,1744131177595,-660.39,0.0003315,2]
[357540004,1744131177605,-639.27,0.0003315,2]
[357540005,1744131177616,-1000.0,0.00033152,5]
[357540006,1744131177625,-159.45,0.00033335,2]
[357540007,1744131177635,-159.45,0.00033335,2]
[357540008,1744131177644,-159.45,0.00033335,2]
[357540009,1744131177653,-159.45,0.00033335,2]
[357540010,1744131177662,-159.45,0.00033335,2]
[357540011,1744131177671,-159.45,0.00033335,2]
[357540012,1744131177681,-159.45,0.00033335,2]
[357540013,1744131177691,-159.45,0.00033335,2]
[357540014,1744131177699,-159.45,0.00033335,2]
[357540015,1744131177708,-159.45,0.00033335,2]
[357540016,1744131177718,-159.45,0.00033335,2]
[357540017,1744131177728,-159.45,0.00033335,2]
[357540018,1744131177737,-159.45,0.00033335,2]
[357540019,1744131177747,-159.45,0.00033335,2]
[357540020,1744131177755,-159.45,0.00033335,2]
[357540021,1744131177766,-159.45,0.00033335,2]
[357540022,1744131177775,-159.45,0.00033335,2]
[357540023,1744131177784,-159.45,0.00033335,2]
[357540024,1744131177794,-159.45,0.00033335,2]
[357540025,1744131177803,-159.45,0.00033335,2]
[357540026,1744131177812,-159.45,0.00033335,2]
[357540027,1744131177822,-159.45,0.00033335,2]
[357540028,1744131177831,-159.45,0.00033335,2]
[357540029,1744131177840,-1120.0,0.00033355,2]
[357540030,1744131177849,-500.0,0.00033424,2]
[357540031,1744131177858,-1012.34,0.00033424,2]
[357540032,1744131177869,-521.99,0.00033424,2]
[357540033,1744131177878,-1008.75,0.00033424,2]
[357540034,1744131177888,-572.69,0.00033424,2]
[357540035,1744131177897,-938.36,0.00033424,2]
[357540036,1744131177906,-799.85,0.00033424,2]
[357540037,1744131177916,-244.96289159,0.00033424,2]
[357540038,1744131177926,-278.75309648,0.00033424,2]
[357540039,1744131177935,-936.4,0.00033424,2]
[357540040,1744131177944,-736.0,0.00033424,2]
[357540041,1744131177954,-354.22602374,0.00033424,2]
[357540042,1744131177963,-550.93,0.00033424,2]
[357540043,1744131177972,-621.25,0.00033424,2]
[357540044,1744131177981,-338.25944966,0.00033424,2]
[357540045,1744131177991,-500.0,0.00033424,2]
[357540046,1744131178000,-1509.4,0.00033424,2]
[357540047,1744131178009,-768.18,0.00033424,2]
[357540048,1744131178019,-734.29,0.00033424,2]
[357540049,1744131178028,-707.17,0.00033424,2]
[357540050,1744131178037,-509.41,0.00033424,2]
[357540051,1744131178047,-411.27232821,0.00033424,2]
[357540052,1744131178056,-1220.84,0.00033424,2]
[357540053,1744131178066,-516.18213635,0.00033424,2]
[357540054,1744131178076,-545.03,0.00033424,2]
[357540055,1744131178087,-1019.54,0.00033424,2]
[357540056,1744131178097,-538.21,0.00033424,2]
[357540057,1744131178111,-1644.68,0.00033424,2]
[357540058,1744131178125,-734.05,0.00033424,2]
[357540059,1744131178135,-1425.74,0.00033424,2]
[357540060,1744131178146,-1187.81,0.00033424,2]
[357540061,1744131178156,-1273.1,0.00033424,2]
[357540062,1744131178166,-1048.09,0.00033424,2]
[357540063,1744131178176,-531.84,0.00033424,2]
[357540064,1744131178188,-686.22,0.00033424,2]
[357540065,1744131178197,-643.82,0.00033424,2]
[357540066,1744131178207,-589.26,0.00033424,2]
[357540067,1744131178216,-530.29,0.00033424,2]
[357540068,1744131178226,-1739.87,0.00033424,2]
[357540069,1744131178236,-913.6,0.00033424,2]
[357540070,1744131178246,-541.35,0.00033424,2]
[357540071,1744131178256,-524.83,0.00033424,2]
[357540072,1744131178266,-853.97,0.00033424,2]
[357540073,1744131178277,-1206.08,0.00033424,2]
[357540074,1744131178286,-839.17,0.00033424,2]
[357540075,1744131178296,-1079.35,0.00033424,2]
[357540076,1744131178306,-646.6,0.00033424,2]
[357540077,1744131178315,-1392.68,0.00033424,2]
[357540078,1744131178325,-1013.5,0.00033424,2]
[357540079,1744131178335,-1047.48,0.00033424,2]
[357540080,1744131178345,-1138.94,0.00033424,2]
[357540081,1744131178355,-571.65,0.00033424,2]
[357540082,1744131178365,-985.93,0.00033424,2]
[357540083,1744131178375,-893.75,0.00033424,2]
[357540084,1744131178385,-882.81,0.00033424,2]
[357540085,1744131178395,-635.65,0.00033424,2]
[357540086,1744131178405,-554.86,0.00033424,2]
[357540087,1744131178416,-1285.07,0.00033424,2]
[357540088,1744131178426,-815.01,0.00033424,2]
[357540089,1744131178436,-2250.35,0.00033424,2]
[357540090,1744131178446,-828.56,0.00033424,2]
[357540091,1744131178456,-553.89,0.00033424,2]
[357540092,1744131178466,-554.97,0.00033424,2]
[357540093,1744131178477,-571.07,0.00033424,2]
[357540094,1744131178487,-635.52,0.00033424,2]
[357540095,1744131178497,-729.33,0.00033424,2]
[357540096,1744131178507,-1155.37,0.00033424,2]
[357540097,1744131178517,-683.43,0.00033424,2]
[357540098,1744131178527,-659.52,0.00033424,2]
[357540099,1744131178537,-959.29,0.00033424,2]
[357540100,1744131178547,-1042.58,0.00033424,2]
[357540101,1744131178557,-174.37285001,0.00033424,2]
[357540102,1744131178567,-528.81705728,0.00033424,2]
[357540103,1744131178576,-502.74,0.00033424,2]
[357540104,1744131178586,-500.0,0.00033424,2]
[357540105,1744131178595,-479.48891868,0.00033424,2]
[357540106,1744131178604,-651.5,0.00033424,2]
[357540107,1744131178614,-594.23,0.00033424,2]
[357540108,1744131178626,-594.32,0.00033424,2]
[357540109,1744131178637,-764.58,0.00033424,2]
[357540110,1744131178646,-554.84,0.00033424,2]
[357540111,1744131178656,-1066.53,0.00033424,2]
[357540112,1744131178667,-784.39,0.00033424,2]
[357540113,1744131178676,-508.06,0.00033424,2]
[357540114,1744131178686,-513.92,0.00033424,2]
[357540115,1744131178696,-1465.9,0.00033424,2]
[357540116,1744131178706,-568.34,0.00033424,2]
[357540117,1744131178716,-583.31,0.00033424,2]
[357540118,1744131178726,-627.5,0.00033424,2]
[357540119,1744131178736,-462.40909437,0.00033424,2]
[357540120,1744131178746,-180.16921145,0.00033424,2]
[357540121,1744131178755,-570.96,0.00033424,2]
[357540122,1744131178765,-702.55,0.00033424,2]
[357540123,1744131178775,-627.68,0.00033424,2]
[357540124,1744131178784,-600.21,0.00033424,2]
[357540125,1744131178794,-717.93,0.00033424,2]
[357540126,1744131178804,-525.64,0.00033424,2]
[357540127,1744131178818,-683.46,0.00033424,2]
[357540128,1744131178827,-421.59317004,0.00033424,2]
[357540129,1744131178837,-537.7,0.00033424,2]
[357540130,1744131178847,-1354.7,0.00033424,2]
[357540131,1744131178856,-748.01,0.00033424,2]
[357540132,1744131178868,-1010.61,0.00033424,2]
[357540133,1744131178878,-564.61,0.00033424,2]
[357540134,1744131178887,-790.51,0.00033424,2]
[357540135,1744131178896,-1476.66,0.00033424,2]
[357540136,1744131178905,-500.0,0.00033424,2]
[357540137,1744131178915,-655.26,0.00033424,2]
[357540138,1744131178924,-737.15,0.00033424,2]
[357540139,1744131178933,-545.77625298,0.00033424,2]
[357540140,1744131178943,-539.63,0.00033424,2]
[357540141,1744131178952,-500.0,0.00033424,2]
[357540142,1744131178961,-677.2,0.00033424,2]
[357540143,1744131178970,-959.99,0.00033424,2]
[357540144,1744131178979,-703.81,0.00033424,2]
[357540145,1744131178989,-704.21,0.00033424,2]
[357540146,1744131178999,-641.96,0.00033424,2]
[357540147,1744131179009,-505.48,0.00033424,2]
[357540148,1744131179018,-932.66,0.00033424,2]
[357540149,1744131179027,-812.56,0.00033424,2]
[357540150,1744131179036,-1465.75,0.00033424,2]
[357540151,1744131179045,-580.15,0.00033424,2]
[357540152,1744131179055,-889.0,0.00033424,2]
[357540153,1744131179065,-888.6,0.00033424,2]
[357540154,1744131179074,-545.23,0.00033424,2]
[357540155,1744131179084,-2260.02,0.00033424,2]
[357540156,1744131179094,-794.37,0.00033424,2]
[357540157,1744131179104,-613.35,0.00033424,2]
[357540158,1744131179117,-567.81,0.00033424,2]
[357540159,1744131179127,-579.54749416,0.00033424,2]
[357540160,1744131179136,-808.98,0.00033424,2]
[357540161,1744131179147,-845.46,0.00033424,2]
[357540162,1744131179156,-593.3,0.00033424,2]
[357540163,1744131179166,-581.16,0.00033424,2]
[357540164,1744131179175,-878.06,0.00033424,2]
[357540165,1744131179186,-1056.72,0.00033424,2]
[357540166,1744131179196,-1037.85,0.00033424,2]
[357540167,1744131179205,-624.4,0.00033424,2]
[357540168,1744131179215,-547.36,0.00033424,2]
[357540169,1744131179224,-1221.73,0.00033424,2]
[357540170,1744131179234,-541.77,0.00033424,2]
[357540171,1744131179243,-1049.21,0.00033424,2]
[357540172,1744131179253,-833.03,0.00033424,2]
[357540173,1744131179262,-947.72,0.00033424,2]
[357540174,1744131179272,-2154.22,0.00033424,2]
[357540175,1744131179282,-915.59,0.00033424,2]
[357540176,1744131179292,-715.09,0.00033424,2]
[357540177,1744131179301,-806.29,0.00033424,2]
[357540178,1744131179311,-681.07,0.00033424,2]
[357540179,1744131179321,-596.17,0.00033424,2]
[357540180,1744131179331,-623.11,0.00033424,2]
[357540181,1744131179340,-643.21,0.00033424,2]
[357540182,1744131179350,-895.87,0.00033424,2]
[357540183,1744131179360,-591.63,0.00033424,2]
[357540184,1744131179371,-840.88,0.00033424,2]
[357540185,1744131179381,-915.65,0.00033424,2]
[357540186,1744131179393,-2601.54,0.00033424,2]
[357540187,1744131179402,-6189.26,0.00033424,2]
[357540188,1744131179412,-1470.66,0.00033424,2]
[357540189,1744131179422,-233.83112866,0.00033424,2]
[357540190,1744131179432,-1161.33,0.00033424,2]
[357540191,1744131179442,-557.06,0.00033424,2]
[357540192,1744131179452,-748.03,0.00033424,2]
[357540193,1744131179461,-1784.68,0.00033424,2]
[357540194,1744131179471,-736.96,0.00033424,2]
[357540195,1744131179481,-528.16,0.00033424,2]
[357540196,1744131179491,-802.54,0.00033424,2]
[357540197,1744131179500,-1759.78,0.00033424,2]
[357540198,1744131179510,-880.64,0.00033424,2]
[357540199,1744131179519,-878.89,0.00033424,2]
[357540200,1744131179530,-939.58,0.00033424,2]
[357540201,1744131179540,-735.03,0.00033424,2]
[357540202,1744131179550,-524.35,0.00033424,2]
[357540203,1744131179559,-1127.76,0.00033424,2]
[357540204,1744131179568,-1017.57,0.00033424,2]
[357540205,1744131179578,-6178.64,0.00033424,2]
[357540206,1744131179587,-396.28,0.00033424,2]
[357540207,1744131179597,-513.55,0.00033424,2]
[357540208,1744131179607,-950.17,0.00033424,2]
[357540209,1744131179617,-1089.76,0.00033424,2]
[357540210,1744131179626,-549.65,0.00033424,2]
[357540211,1744131179636,-578.6,0.00033424,2]
[357540212,1744131179646,-841.6,0.00033424,2]
[357540213,1744131179655,-1940.65,0.00033424,2]
[357540214,1744131179666,-3839.98,0.00033424,2]
[357540215,1744131179676,-671.05,0.00033424,2]
[357540216,1744131179685,-558.9,0.00033424,2]
[357540217,1744131179695,-1739.52,0.00033424,2]
[357540218,1744131179705,-853.97,0.00033424,2]
[357540219,1744131179715,-727.58,0.00033424,2]
[357540220,1744131179725,-734.69,0.00033424,2]
[357540221,1744131179735,-1008.41,0.00033424,2]
[357540222,1744131179744,-990.1,0.00033424,2]
[357540223,1744131179754,-737.46,0.00033424,2]
[357540224,1744131179764,-872.33,0.00033424,2]
[357540225,1744131179773,-880.15,0.00033424,2]
[357540226,1744131179783,-825.98,0.00033424,2]
[357540227,1744131179793,-506.13,0.00033424,2]
[357540228,1744131179803,-2261.1,0.00033424,2]
[357540229,1744131179812,-2351.91,0.00033424,2]
[357540230,1744131179822,-1830.5,0.00033424,2]
[357540231,1744131179832,-727.88,0.00033424,2]
[357540232,1744131179841,-1859.52,0.00033424,2]
[357540233,1744131179851,-665.51,0.00033424,2]
[357540234,1744131179861,-986.07,0.00033424,2]
[357540235,1744131179871,-593.3,0.00033424,2]
[357540236,1744131179881,-1483.68,0.00033424,2]
[357540237,1744131179890,-4169.04,0.00033424,2]
[357540238,1744131179900,-1258.57,0.00033424,2]
[357540239,1744131179910,-524.58,0.00033424,2]
[357540240,1744131179920,-646.63,0.00033424,2]
[357540241,1744131179929,-1146.51,0.00033424,2]
[357540242,1744131179939,-808.53,0.00033424,2]
[357540243,1744131179949,-535.91,0.00033424,2]
[357540244,1744131179958,-24279.06,0.00033424,2]
[357540245,1744131179968,-632.96,0.00033424,2]
[357540246,1744131179978,-1842.22,0.00033424,2]
[357540247,1744131179988,-575.39,0.00033424,2]
[357540248,1744131179997,-892.34,0.00033424,2]
[357540249,1744131180008,-735.43,0.00033424,2]
[357540250,1744131180018,-921.97,0.00033424,2]
[357540251,1744131180028,-1216.92,0.00033424,2]
[357540252,1744131180038,-589.43,0.00033424,2]
[357540253,1744131180048,-500.0,0.00033424,2]
[357540254,1744131180058,-1299.3,0.00033424,2]
[357540255,1744131180068,-646.32,0.00033424,2]
[357540256,1744131180079,-616.22,0.00033424,2]
[357540257,1744131180089,-4391.56,0.00033424,2]
[357540258,1744131180098,-735.03,0.00033424,2]
[357540259,1744131180109,-573.44,0.00033424,2]
[357540260,1744131180125,-830.9,0.00033424,2]
[357540261,1744131180135,-542.44,0.00033424,2]
[357540262,1744131180146,-1398.27,0.00033424,2]
[357540263,1744131180156,-763.62,0.00033424,2]
[357540264,1744131180166,-1043.21,0.00033424,2]
[357540265,1744131180176,-180.45334314,0.00033424,2]
[357540266,1744131180187,-745.57,0.00033424,2]
[357540267,1744131180197,-812.8,0.00033424,2]
[357540268,1744131180207,-836.32,0.00033424,2]
[357540269,1744131180217,-813.0,0.00033424,2]
[357540270,1744131180226,-231.20003263,0.00033424,2]
[357540271,1744131180237,-684.15,0.00033424,2]
[357540272,1744131180487,-984.76,0.00033424,2]
[357540273,1744131180497,-1564.46,0.00033424,2]
[357540274,1744131180507,-615.97,0.00033424,2]
[357540275,1744131180516,-630.49,0.00033424,2]
[357540276,1744131180526,-780.29,0.00033424,2]
[357540277,1744131180535,-794.86,0.00033424,2]
[357540278,1744131180545,-918.03,0.00033424,2]
[357540279,1744131180554,-6319.24,0.00033424,2]
[357540280,1744131180563,-929.59,0.00033424,2]
[357540281,1744131180573,-1679.19,0.00033424,2]
[357540282,1744131180582,-660.39,0.00033424,2]
[357540283,1744131180592,-1000.0,0.00033452,5]
[357540284,1744131180602,-35570.3000382,0.00033675,2]
[357540285,1744131180611,-4810.556668,0.00033675,2]
[357540286,1744131180621,-490.27295156,0.00033698,2]
[357540287,1744131180630,-1012.49659162,0.00033698,2]
[357540288,1744131180640,-522.11793222,0.00033698,2]
[357540289,1744131180651,-1008.86520099,0.00033698,2]
[357540290,1744131180661,-572.7193054,0.00033698,2]
[357540291,1744131180671,-938.38553019,0.00033698,2]
[357540292,1744131180680,-799.90085769,0.00033698,2]
[357540293,1744131180690,-936.54396076,0.00033698,2]
[357540294,1744131180699,-736.10684746,0.00033698,2]
[357540295,1744131180709,-551.10816724,0.00033698,2]
[357540296,1744131180719,-621.35219081,0.00033698,2]
[357540297,1744131180728,-413.13321964,0.00033698,2]
[357540298,1744131180738,-1509.51263734,0.00033698,2]
[357540299,1744131180748,-768.33397689,0.00033698,2]
[357540300,1744131180758,-734.33742809,0.00033698,2]
[357540301,1744131180767,-707.19696022,0.00033698,2]
[357540302,1744131180777,-509.60916858,0.00033698,2]
[357540303,1744131180786,-1220.91591103,0.00033698,2]
[357540304,1744131180797,-545.14054732,0.00033698,2]
[357540305,1744131180807,-1019.60261775,0.00033698,2]
[357540306,1744131180816,-538.3042468,0.00033698,2]
[357540307,1744131180827,-1644.90294546,0.00033698,2]
[357540308,1744131180836,-734.25709044,0.00033698,2]
[357540309,1744131180845,-1425.85606252,0.00033698,2]
[357540310,1744131180855,-1187.97942299,0.00033698,2]
[357540311,1744131180865,-1273.32602862,0.00033698,2]
[357540312,1744131180877,-1048.1117981,0.00033698,2]
[357540313,1744131180887,-531.90583459,0.00033698,2]
[357540314,1744131180896,-686.33677157,0.00033698,2]
[357540315,1744131180905,-643.98,0.00033698,2]
[357540316,1744131180914,-589.39213994,0.00033698,2]
[357540317,1744131180924,-530.37715837,0.00033698,2]
[357540318,1744131180933,-1739.96493143,0.00033698,2]
[357540319,1744131180942,-913.72686987,0.00033698,2]
[357540320,1744131180952,-541.48428088,0.00033698,2]
[357540321,1744131180961,-524.91174102,0.00033698,2]